bitfinex/quotes_ETHUSD_20250804
["timestamp","ask_amount","ask_price","bid_price","bid_amount"]
[1754326992053,0.55,3691.8,3691.5,0.4618]
[1754326992236,3.25873238,3691.8,3691.6,0.631]
[1754326992553,3.0,3691.6,3690.9,2.70934486]
[1754326992855,5.179,3691.4,3690.4,0.631]
[1754326993162,0.55,3691.1,3690.3,4.184]
[1754326993311,3.0,3690.6,3690.0,3.1717766]
[1754326993509,3.0,3690.6,3690.4,0.1352]
[1754326994157,2.84461376,3690.9,3690.5,0.631]
[1754326994158,5.70946472,3690.8,3690.5,0.631]
[1754326994471,5.70946472,3690.8,3690.6,0.631]
[1754326994746,3.0,3690.8,3690.7,0.631]
[1754326994914,2.70943968,3690.8,3690.7,0.631]
[1754326995110,3.0,3690.8,3690.7,0.631]
[1754326995306,3.0,3690.8,3690.7,1.0928]
[1754326996312,2.70943968,3690.8,3690.7,1.0928]
[1754326996554,3.0,3690.8,3690.7,0.631]
[1754326996935,5.7095131,3690.7,3690.6,0.1352]
[1754326997112,2.70943968,3690.8,3690.2,4.3192]
[1754326997113,2.70980679,3690.3,3690.2,4.3192]
[1754326997313,5.70980679,3690.3,3690.2,4.3192]
[1754326997508,5.70980679,3690.3,3690.2,4.9502]
[1754326997713,5.70980679,3690.3,3690.2,0.7662]
[1754326997914,3.0,3690.3,3690.2,0.7662]
[1754326998145,3.0,3690.3,3690.2,1.228]
[1754326998632,5.70980679,3690.3,3690.2,0.1352]
[1754326998826,3.0,3690.3,3690.2,0.7662]
[1754326999028,3.0,3690.3,3690.2,1.228]
[1754326999817,3.0,3691.1,3690.4,2.70973309]
[1754327000150,3.0,3691.4,3690.5,1.11989659]
[1754327000351,3.0,3691.3,3690.9,0.1352]
[1754327000526,0.1352,3692.0,3691.0,1.0928]
[1754327000725,4.3192,3692.0,3691.3,0.1352]
[1754327000928,3.0,3691.5,3691.3,0.1352]
[1754327001251,0.4555,3691.9,3691.3,0.1352]
[1754327001460,3.0,3691.5,3691.3,0.1352]
[1754327001772,2.70899929,3691.4,3691.3,0.1352]
[1754327001939,2.70916945,3691.2,3690.8,4.184]
[1754327002261,3.0,3691.2,3690.9,0.1352]
[1754327002429,5.70916786,3691.2,3690.9,0.1352]
[1754327003338,5.70929287,3691.0,3690.9,0.1352]
[1754327003543,3.0,3690.5,3690.1,5.2768]
[1754327003740,2.70965993,3690.5,3690.4,0.1352]
[1754327004154,3.0,3691.0,3690.0,4.184]
[1754327004364,0.55,3690.7,3690.2,0.1352]
[1754327004572,2.70953251,3690.7,3690.2,0.1352]
[1754327004740,3.0,3690.6,3690.2,0.7662]
[1754327004944,2.70958753,3690.6,3690.3,0.631]
[1754327005172,0.1352,3690.8,3690.4,0.631]
[1754327005474,0.1352,3690.8,3690.5,1.0928]
[1754327005679,4.629,3691.7,3690.6,1.0928]
[1754327005830,0.55,3691.3,3690.7,0.1352]
[1754327006171,2.70928908,3691.1,3690.7,0.1352]
[1754327006328,2.70935973,3691.0,3690.7,0.1352]
[1754327006529,5.70943968,3690.8,3690.0,6.89301879]
[1754327006734,5.70956154,3690.7,3690.4,0.1352]
[1754327006959,5.70952184,3690.7,3690.4,0.1352]
[1754327007266,3.0,3690.7,3690.4,0.1352]
[1754327007463,3.0,3690.8,3690.4,0.1352]
[1754327007766,2.70960195,3690.6,3690.4,0.1352]
[1754327008167,5.70949536,3690.8,3690.4,0.1352]
[1754327008168,5.70949294,3690.8,3690.4,0.1352]
[1754327008370,5.70949294,3690.8,3690.4,0.7662]
[1754327008672,5.70945428,3690.8,3690.5,0.631]
[1754327008877,5.70945428,3690.8,3690.6,0.631]
[1754327009083,3.0,3690.8,3690.6,0.631]
[1754327009242,3.0,3691.1,3690.7,1.228]
[1754327009443,6.89201988,3691.4,3690.8,1.0928]
[1754327009642,3.0,3691.3,3690.9,0.631]
[1754327009879,3.0,3691.3,3691.0,1.0928]
[1754327010052,3.0,3691.4,3691.0,1.0928]
[1754327010254,3.0,3691.4,3691.1,0.631]
[1754327011150,3.0,3691.4,3691.2,0.6517]
[1754327011344,0.1352,3691.5,3691.3,0.6517]
[1754327011578,4.183,3691.8,3691.4,1.0923]
[1754327011783,3.0,3691.7,3691.3,2.84427251]
[1754327012085,4.183,3692.0,3691.5,3.80120169]
[1754327012297,0.1352,3692.1,3691.3,0.5553556]
[1754327012298,3.0,3691.9,3691.6,1.2275]
[1754327012614,3.1352,3692.1,3691.7,0.6517]
[1754327012879,3.1352,3692.1,3691.6,0.5758]
[1754327012880,2.70869238,3691.9,3691.6,0.1352]
[1754327013046,3.0,3691.9,3691.6,0.1352]
[1754327013244,2.70855925,3692.0,3691.7,0.6517]
[1754327013471,0.1352,3692.1,3691.7,0.6517]
[1754327013472,2.84372955,3692.1,3691.7,0.6517]
[1754327013659,2.84372955,3692.1,3691.6,0.1352]
[1754327013660,0.1352,3692.1,3691.6,0.1352]
[1754327013869,0.1352,3692.1,3691.8,0.6517]
[1754327014063,0.1352,3692.1,3691.7,0.4406]
[1754327014271,2.84371731,3692.1,3691.9,0.6517]
[1754327014598,0.1352,3692.1,3691.9,0.6517]
[1754327014755,4.183,3692.3,3692.0,1.0923]
[1754327014942,0.55,3692.3,3692.1,0.6517]
[1754327015255,4.183,3692.5,3692.2,1.2275]
[1754327015583,4.183,3692.5,3692.3,0.6517]
[1754327015783,6.89119339,3692.5,3692.2,0.1352]
[1754327015947,2.70826823,3692.4,3692.2,0.1352]
[1754327016284,2.70826823,3692.4,3690.2,2.70985536]
[1754327016285,0.55,3692.3,3691.8,0.1352]
[1754327016747,0.55,3692.3,3691.9,1.0923]
[1754327016951,0.55,3692.3,3691.8,0.1352]
[1754327017170,4.3182,3692.5,3691.9,1.0923]
[1754327017482,0.001,3692.6,3692.1,2.70842278]
[1754327017644,3.001,3692.6,3692.3,0.1352]
[1754327017844,3.001,3692.6,3692.3,0.7869]
[1754327018158,0.001,3692.6,3692.3,0.1352]
[1754327018353,3.001,3692.6,3692.4,0.6517]
[1754327018557,0.001,3692.6,3692.3,0.1352]
[1754327019079,0.001,3692.6,3692.3,0.7869]
[1754327019679,0.001,3692.6,3692.3,0.1352]
[1754327020982,0.001,3692.6,3692.3,0.7869]
[1754327021146,0.001,3692.6,3692.4,0.6517]
[1754327021986,0.001,3692.6,3692.3,0.1352]
[1754327022901,0.001,3692.6,3692.3,0.7869]
[1754327023550,0.551,3692.6,3692.3,0.1352]
[1754327023751,2.7082335,3692.5,3692.3,0.1352]
[1754327023962,4.181,3692.4,3692.3,0.1352]
[1754327025069,0.55,3692.3,3691.5,0.4406]
[1754327025286,3.25839432,3692.3,3691.8,0.1352]
[1754327025479,3.55,3692.3,3691.8,0.1352]
[1754327025666,3.55,3692.3,3691.8,0.7869]
[1754327025864,6.25836066,3692.3,3691.8,0.7869]
[1754327026153,2.70841937,3692.2,3691.8,0.1352]
[1754327026670,2.70849544,3692.1,3691.8,0.1352]
[1754327026996,2.70842553,3692.2,3691.8,0.1352]
[1754327027200,6.73259275,3692.3,3691.8,0.1352]
[1754327027383,2.70843145,3692.2,3691.8,0.1352]
[1754327027687,3.55,3692.3,3691.8,0.1352]
[1754327027891,2.70849355,3692.1,3691.8,0.1352]
[1754327028190,3.55,3692.1,3691.8,0.1352]
[1754327028507,3.2584986,3692.1,3691.8,0.1352]
[1754327029000,3.0,3692.1,3691.8,0.1352]
[1754327029169,0.55,3692.2,3691.8,0.1352]
[1754327029356,3.0,3692.1,3691.8,0.1352]
[1754327029869,3.0,3692.3,3691.8,0.1352]
[1754327030186,4.18,3692.5,3691.9,3.80087656]
[1754327030366,0.001,3692.6,3692.2,0.1352]
[1754327030686,0.001,3692.6,3692.5,0.1352]
[1754327031260,0.001,3692.6,3692.5,0.7869]
[1754327032156,0.001,3692.6,3692.5,1.2275]
[1754327032360,0.001,3692.6,3692.5,3.93569228]
[1754327032652,0.001,3692.6,3692.5,4.62717101]
[1754327033162,0.001,3692.6,3692.5,4.46488909]
[1754327033364,0.001,3692.6,3692.5,4.60008909]
[1754327035186,0.001,3692.6,3692.5,8.78008909]
[1754327036901,0.001,3692.6,3692.5,8.77908909]
[1754327038400,0.001,3692.6,3692.5,4.60008909]
[1754327038565,0.001,3692.6,3692.5,8.77908909]
[1754327039166,0.001,3692.8,3692.7,2.7080456]
[1754327039367,0.001,3692.8,3692.7,3.99195907]
[1754327039583,0.001,3692.8,3692.7,5.08425907]
[1754327040601,0.001,3692.8,3692.7,9.26225907]
[1754327041079,0.001,3692.8,3692.7,1.28391347]
[1754327041254,0.001,3692.8,3692.7,4.3132]
[1754327041459,0.001,3692.8,3692.7,0.1352]
[1754327041797,0.001,3692.8,3692.7,7.6606456]
[1754327042311,0.001,3692.8,3692.7,0.1352]
[1754327042460,0.001,3692.8,3692.7,4.3132]
[1754327042800,0.001,3692.8,3692.7,8.65438492]
[1754327042997,0.001,3692.8,3692.7,8.62730447]
[1754327043502,0.001,3692.8,3692.7,3.37480447]
[1754327043801,0.001,3692.8,3692.7,0.66675887]
[1754327043984,0.001,3692.8,3692.7,4.3132]
[1754327044368,0.001,3692.8,3692.7,2.8432456]
[1754327044570,0.001,3692.8,3692.7,7.6606456]
[1754327045084,0.001,3692.8,3692.7,4.3132]
[1754327045798,0.001,3692.8,3692.7,7.0212456]
[1754327045958,0.001,3692.8,3692.7,8.63358826]
[1754327046473,0.001,3692.8,3692.7,9.06868826]
[1754327046900,0.001,3692.8,3692.7,8.63358826]
[1754327047212,0.001,3692.8,3692.7,0.1352]
[1754327047866,0.001,3692.8,3692.7,4.3122]
[1754327048471,0.001,3692.8,3692.7,7.6596456]
[1754327048671,0.001,3692.8,3692.7,8.0947456]
[1754327050396,0.001,3692.8,3692.7,7.9595456]
[1754327050581,0.001,3692.8,3692.7,9.43232593]
[1754327055103,0.001,3692.8,3692.7,9.43132593]
[1754327055804,0.001,3692.8,3692.7,4.18082593]
[1754327056004,0.001,3692.8,3692.7,7.0192456]
[1754327058107,0.001,3692.8,3692.7,7.6586456]
[1754327058315,0.001,3692.8,3692.7,8.0937456]
[1754327059788,0.001,3692.8,3692.7,7.6586456]
[1754327061882,0.001,3692.8,3692.7,8.0937456]
[1754327062095,0.001,3692.8,3692.7,9.17393305]
[1754327066121,0.001,3692.8,3692.7,8.73883305]
[1754327067992,0.001,3692.8,3692.7,8.73783305]
[1754327068194,0.001,3692.8,3692.7,9.17293305]
[1754327071340,0.001,3692.8,3692.7,8.09843305]
[1754327072324,0.001,3692.8,3692.7,8.72083305]
[1754327073946,0.001,3692.8,3692.7,9.15033305]
[1754327077316,0.001,3693.2,3693.1,2.70775229]
[1754327077525,0.001,3693.2,3693.1,6.90882981]
[1754327077720,0.001,3693.2,3693.1,8.06885229]
[1754327079108,0.001,3693.5,3693.4,2.70753235]
[1754327079307,0.001,3693.5,3693.4,6.90860767]
[1754327079619,0.001,3693.5,3693.4,9.41974002]
[1754327079948,1e-08,3693.5,3693.4,9.41974002]
[1754327085213,0.4293,3694.5,3694.4,2.70679948]
[1754327085436,0.4293,3694.5,3694.4,6.87879948]
[1754327085832,0.4293,3694.5,3694.4,7.01399948]
[1754327086130,0.4293,3694.5,3694.4,7.01397342]
[1754327086950,3.0,3694.9,3694.5,2.70669278]
[1754327087113,0.4293,3694.9,3694.6,6.87860347]
[1754327087317,0.7698,3694.8,3694.6,4.172]
[1754327087515,0.4293,3694.8,3694.6,4.172]
[1754327087960,0.4293,3694.7,3694.6,4.172]
[1754327088115,0.7698,3694.7,3694.6,4.172]
[1754327089344,0.7698,3694.7,3694.6,6.87865295]
[1754327089548,0.4293,3694.7,3694.6,4.172]
[1754327090222,0.7698,3694.7,3694.6,4.172]
[1754327091999,0.7698,3694.7,3694.6,4.171]
[1754327092356,0.7698,3694.7,3694.6,6.87765295]
[1754327092559,0.4293,3694.9,3694.6,4.171]
[1754327092797,0.4293,3694.8,3694.6,4.171]
[1754327093603,0.4293,3694.8,3694.6,6.87764995]
[1754327093806,0.4293,3694.8,3694.6,4.171]
[1754327095012,0.4293,3694.7,3694.6,4.171]
[1754327095182,7.818,3695.0,3694.6,4.171]
[1754327095403,8.2473,3695.0,3694.6,6.87764017]
[1754327095811,0.001,3694.7,3694.6,6.87764017]
[1754327096622,0.001,3694.7,3694.6,4.171]
[1754327096928,0.7708,3694.7,3694.6,4.171]
[1754327097941,0.001,3694.7,3694.4,0.1352]
[1754327098139,0.4293,3694.6,3694.5,4.17]
[1754327098318,0.001,3694.7,3694.5,4.17]
[1754327098724,0.001,3694.7,3694.6,3.13615295]
[1754327099037,0.001,3694.7,3694.6,4.77336176]
[1754327099210,0.001,3694.7,3694.6,4.47906176]
[1754327099693,0.001,3694.7,3694.6,4.3052]
[1754327099889,0.001,3694.7,3694.6,7.01185295]
[1754327100409,0.001,3694.7,3694.6,7.63425295]
[1754327101671,0.001,3694.7,3694.6,8.07175295]
[1754327102003,0.001,3694.7,3694.6,7.63425295]
[1754327103896,0.4369,3694.7,3694.6,4.3042]
[1754327104126,0.001,3694.7,3694.6,4.3042]
[1754327104324,0.001,3694.7,3694.6,7.01085295]
[1754327104505,0.001,3694.7,3694.6,0.1352]
[1754327104711,0.001,3694.7,3694.6,2.84185295]
[1754327104921,0.001,3694.7,3694.6,7.01085295]
[1754327105231,0.001,3694.7,3694.6,7.58165295]
[1754327105409,0.001,3694.7,3694.6,2.84185295]
[1754327105609,0.001,3694.7,3694.6,4.3042]
[1754327105936,0.001,3694.7,3694.6,7.01085295]
[1754327106115,0.001,3694.7,3694.6,4.3042]
[1754327106503,0.001,3694.7,3694.6,0.1352]
[1754327106729,0.001,3694.7,3694.6,4.3042]
[1754327107304,0.001,3694.7,3694.6,0.1352]
[1754327107499,0.001,3694.7,3694.6,4.3042]
[1754327107500,0.4369,3694.7,3694.6,4.3042]
[1754327107905,6.46537969,3694.7,3693.8,2.70721254]
[1754327108205,5.7067442,3694.5,3694.1,0.1352]
[1754327108510,2.70688291,3694.3,3694.2,4.168]
[1754327108834,3.46468291,3694.3,3694.2,4.168]
[1754327108998,2.70729359,3693.8,3693.3,6.501]
[1754327109197,3.14321607,3693.7,3693.6,0.1352]
[1754327109409,3.46511245,3693.7,3693.6,0.1352]
[1754327109614,6.46511245,3693.7,3693.6,0.1352]
[1754327109811,6.46511245,3693.7,3693.2,0.002]
[1754327109812,2.70760566,3693.3,3693.2,0.1372]
[1754327110058,2.70760566,3693.3,3693.2,4.3052]
[1754327110204,2.70748056,3693.5,3693.2,4.3052]
[1754327110405,2.70753835,3693.4,3693.2,4.3052]
[1754327110728,2.70760566,3693.3,3693.2,4.3052]
[1754327111851,0.4359,3693.4,3693.2,4.3052]
[1754327112842,2.70746608,3693.5,3693.2,4.3052]
[1754327113201,3.14336608,3693.5,3693.2,4.3052]
[1754327113642,6.25760566,3693.3,3693.2,0.002]
[1754327113827,6.39280566,3693.3,3693.2,0.002]
[1754327114001,7.15060566,3693.3,3693.2,0.002]
[1754327114651,6.82870566,3693.3,3693.2,0.002]
[1754327114960,3.1352,3693.3,3693.2,0.002]
[1754327115180,3.0,3693.3,3693.2,0.002]
[1754327115565,5.70760566,3693.3,3693.2,0.002]
[1754327116908,7.15060566,3693.3,3693.2,0.002]
[1754327117598,37.15060566,3693.3,3693.2,0.002]
[1754327118096,7.15060566,3693.3,3693.2,0.002]
[1754327118298,6.25760566,3693.3,3693.2,0.002]
[1754327118587,5.84280566,3693.3,3693.2,0.002]
[1754327119352,3.1352,3693.3,3693.2,0.002]
[1754327119585,3.1352,3693.3,3693.2,0.5728]
[1754327119993,5.84280566,3693.3,3693.2,0.002]
[1754327120506,3.1352,3693.3,3693.2,0.002]
[1754327120906,3.1352,3693.3,3693.2,0.5728]
[1754327121199,6.46540566,3693.3,3693.2,0.002]
[1754327121351,6.25760566,3693.3,3693.2,0.002]
[1754327121806,7.01540566,3693.3,3693.2,0.002]
[1754327122151,21.98325283,3693.3,3693.2,0.002]
[1754327122348,21.98325283,3693.3,3693.2,0.5728]
[1754327122918,21.98325283,3693.3,3693.2,0.002]
[1754327123251,5.70789894,3692.9,3692.8,0.1352]
[1754327125941,2.70789894,3692.9,3692.8,1.0083]
[1754327126268,2.70789894,3692.9,3692.8,1.1435]
[1754327127169,2.70784719,3693.0,3692.8,1.1435]
[1754327127345,5.70778011,3693.1,3692.8,1.1435]
[1754327127551,5.70778011,3693.1,3692.8,0.1352]
[1754327127734,5.70778011,3693.1,3692.9,1.0083]
[1754327128065,18.98242284,3694.5,3693.0,1.0083]
[1754327128267,2.70744953,3693.6,3693.0,1.1435]
[1754327128555,3.0,3693.5,3693.4,0.1352]
[1754327128930,2.70745904,3693.5,3693.4,0.5727]
[1754327129316,2.70740246,3693.6,3693.4,0.5727]
[1754327129566,2.70732356,3693.7,3693.4,1.1435]
[1754327130834,2.70718526,3693.9,3693.7,1.0083]
[1754327131161,3.001,3694.0,3693.7,5.3115]
[1754327131162,0.001,3694.0,3693.7,5.3115]
[1754327131363,0.001,3694.0,3693.9,2.70716586]
[1754327131661,0.001,3694.0,3693.8,1.70065]
[1754327131958,0.001,3694.0,3693.9,1.0343]
[1754327133149,0.001,3694.0,3693.9,3.74146586]
[1754327133374,0.001,3694.0,3693.9,4.86977265]
[1754327133803,0.001,3694.0,3693.9,5.00497265]
[1754327135389,0.001,3694.0,3693.9,5.0320443]
[1754327135551,0.001,3694.0,3693.9,5.00497265]
[1754327139084,0.001,3694.0,3693.9,8.73777265]
[1754327139254,0.001,3694.0,3693.9,9.17097265]
[1754327141583,0.001,3694.0,3693.9,5.00497265]
[1754327141880,0.001,3694.0,3693.9,9.17097265]
[1754327142484,0.001,3694.0,3693.9,6.03060679]
[1754327142683,0.001,3694.0,3693.9,4.9023]
[1754327143087,0.001,3694.0,3693.9,7.60946586]
[1754327143875,0.001,3694.0,3693.9,8.04266586]
[1754327147884,1e-08,3694.0,3693.9,8.04266586]
[1754327148085,1e-08,3694.0,3693.9,11.04266586]
[1754327148287,1e-08,3694.0,3693.9,13.61786273]
[1754327149103,1e-08,3694.7,3694.6,2.70665295]
[1754327149284,1e-08,3694.7,3694.6,6.87165295]
[1754327149616,1e-08,3694.7,3694.6,7.00685295]
[1754327149980,1e-08,3694.7,3694.6,8.04115295]
[1754327150311,1e-08,3694.7,3694.6,9.11594216]
[1754327150816,1e-08,3694.7,3694.6,8.08164216]
[1754327151315,1e-08,3694.7,3694.6,9.11594216]
[1754327153526,0.3416327,3695.0,3694.7,5.70657969]
[1754327153728,0.3416327,3695.0,3694.9,5.70643319]
[1754327154028,0.3416327,3695.0,3694.9,7.59442869]
[1754327154326,0.3416327,3695.0,3694.9,8.62872869]
[1754327156224,0.3416327,3695.0,3694.9,12.79272869]
[1754327156726,0.001,3695.2,3695.1,2.7062867]
[1754327156926,0.001,3695.2,3695.1,7.0044867]
[1754327157225,0.001,3695.2,3695.1,8.45085824]
[1754327157423,0.001,3695.2,3695.1,9.05195824]
[1754327158625,0.001,3695.2,3695.1,9.48515824]
[1754327160196,1e-08,3695.2,3695.1,9.48515824]
[1754327160824,8.2751,3696.5,3695.3,2.7060777]
[1754327161026,8.2751,3696.5,3695.5,2.70599377]
[1754327161224,8.2751,3696.5,3695.5,3.87809377]
[1754327161531,7.818,3696.5,3695.5,3.87809377]
[1754327162624,7.818,3696.5,3696.1,2.7055545]
[1754327162941,7.818,3696.5,3696.1,6.8675545]
[1754327163231,7.818,3696.5,3696.1,2.7055545]
[1754327163440,7.818,3696.5,3696.1,6.8675545]
[1754327163627,7.818,3696.5,3696.1,7.4575545]
[1754327164143,7.818,3696.5,3696.1,3.2955545]
[1754327164437,7.818,3696.5,3696.1,8.50457381]
[1754327165345,7.818,3696.5,3696.4,2.70533492]
[1754327165511,1e-08,3696.8,3696.7,2.70511537]
[1754327165708,7.818,3697.1,3697.0,2.70489586]
[1754327165709,1e-08,3697.1,3697.0,2.70489586]
[1754327165912,7.818,3697.8,3697.7,2.7043838]
[1754327166413,7.818,3697.8,3697.7,6.8663838]
[1754327167144,7.818,3697.8,3697.7,6.8653838]
[1754327167340,7.818,3697.8,3697.7,8.9183694]
[1754327167728,7.818,3697.8,3697.7,8.4714694]
[1754327168038,7.818,3697.8,3697.7,6.8653838]
[1754327168265,7.818,3697.8,3697.7,2.7043838]
[1754327168573,7.818,3697.8,3697.7,7.9022838]
[1754327168929,7.818,3697.8,3697.7,7.4553838]
[1754327169964,7.818,3697.8,3697.7,7.9022838]
[1754327170136,7.818,3697.8,3697.7,7.4553838]
[1754327170337,7.818,3697.8,3697.7,7.9260594]
[1754327171226,7.818,3697.8,3697.7,6.8653838]
[1754327171446,7.818,3697.8,3697.7,7.4553838]
[1754327171637,7.818,3697.8,3697.7,6.8653838]
[1754327171854,7.818,3697.8,3697.7,2.7043838]
[1754327172048,7.818,3697.8,3697.7,7.4543838]
[1754327172256,7.818,3697.8,3697.7,8.91716939]
[1754327172757,7.818,3697.8,3697.7,9.05236939]
[1754327173538,7.818,3697.8,3697.7,4.44546939]
[1754327173764,2.70310188,3699.5,3697.7,4.44546939]
[1754327173765,7.818,3699.3,3697.8,0.55]
[1754327173927,7.818,3699.3,3699.1,2.70336027]
[1754327174127,7.818,3699.3,3699.2,6.87228719]
[1754327174358,7.818,3699.3,3699.2,8.41985194]
[1754327174564,7.818,3699.3,3699.2,11.41985194]
[1754327174765,7.818,3699.6,3699.5,2.70306798]
[1754327174937,7.818,3699.6,3699.5,7.46506798]
[1754327175134,7.818,3699.6,3699.5,8.66502395]
[1754327175334,1e-08,3699.6,3699.5,13.19759874]
[1754327175533,1e-08,3699.9,3699.8,2.7028488]
[1754327175768,1e-08,3699.9,3699.8,10.93877728]
[1754327175939,1e-08,3699.9,3699.8,10.9117488]
[1754327176259,1e-08,3700.2,3700.1,5.70262965]
[1754327176457,1e-08,3700.2,3700.1,12.84623971]
[1754327177067,1e-08,3700.2,3700.1,12.39533971]
[1754327177454,1e-08,3700.2,3700.1,12.39433971]
[1754327177857,7.818,3701.4,3700.1,12.39433971]
[1754327177858,7.818,3702.0,3701.9,2.70131554]
[1754327178072,7.818,3702.0,3701.9,10.49531554]
[1754327178245,7.818,3702.0,3701.9,6.29131554]
[1754327178446,7.818,3702.0,3701.9,10.80558901]
[1754327178772,7.818,3702.0,3701.9,12.14442311]
[1754327179071,7.818,3702.0,3701.9,19.55661136]
[1754327179256,7.818,3703.0,3702.6,2.70080483]
[1754327179446,7.818,3703.0,3702.6,11.49770483]
[1754327179658,1.04780702,3703.0,3702.9,6.25058602]
[1754327179990,7.838,3703.9,3703.1,3.25044017]
[1754327180135,7.838,3703.9,3703.1,10.51544017]
[1754327180338,1e-08,3703.3,3703.2,6.25036724]
[1754327180575,1e-08,3703.3,3703.2,18.04926724]
[1754327180780,1e-08,3704.2,3703.5,6.2501485]
[1754327180985,7.818,3705.7,3705.1,2.69898248]
[1754327180986,1e-08,3705.2,3705.1,2.69898248]
[1754327181138,5.53558592,3705.4,3705.3,2.6988368]
[1754327181338,7.818,3705.7,3705.6,5.6986183]
[1754327181565,7.818,3705.7,3705.6,27.84216547]
[1754327181835,7.818,3708.2,3706.8,2.69774468]
[1754327182042,7.818,3708.2,3706.8,29.60539185]
[1754327182242,7.818,3708.2,3707.1,3.55]
[1754327182448,0.15,3711.0,3707.1,3.0]
[1754327182650,0.5819,3709.6,3707.2,0.59]
[1754327182845,2.69593384,3709.3,3707.3,4.6449738]
[1754327183083,0.37112988,3711.1,3707.4,6.73416831]
[1754327183285,0.37112988,3711.1,3707.3,4.618]
[1754327183286,0.38067988,3710.4,3707.9,3.0]
[1754327183577,0.02,3711.9,3707.9,3.0]
[1754327183578,0.5819,3711.6,3708.9,16.27564717]
[1754327183784,0.02,3711.9,3708.9,16.27564717]
[1754327183785,0.12306929,3710.5,3709.6,3.0]
[1754327183984,0.02,3711.9,3710.1,16.27564717]
[1754327184185,0.02,3711.9,3709.8,2.6955631]
[1754327184186,0.02,3711.9,3711.8,2.67605191]
[1754327184356,0.02,3711.9,3711.8,6.0077681]
[1754327184546,0.02,3711.9,3711.8,6.1421681]
[1754327184747,0.02,3711.9,3711.8,10.7837681]
[1754327184972,1e-08,3712.0,3711.9,2.69403809]
[1754327185282,4.92290298,3713.2,3711.9,0.1344]
[1754327185581,4.92290298,3713.2,3712.0,4.783]
[1754327185787,4.92290298,3713.2,3712.7,2.69343276]
[1754327185957,4.92290298,3713.2,3712.8,0.16133385]
[1754327186164,4.92290298,3713.2,3712.7,2.69339463]
[1754327186514,4.92290298,3713.2,3712.6,6.487]
[1754327186515,4.92290298,3713.2,3712.8,4.86]
[1754327186798,4.92290298,3713.2,3712.6,6.487]
[1754327186949,4.92290298,3713.2,3710.1,0.59]
[1754327186950,43.24630555,3712.8,3710.1,0.59]
[1754327187149,43.24630555,3712.8,3711.1,4.863]
[1754327187150,3.0,3712.6,3711.1,4.863]
[1754327187482,1.03,3712.5,3711.2,0.02694546]
[1754327187683,4.92290298,3713.2,3712.7,2.69345384]
[1754327187684,5.37100298,3713.2,3712.7,2.69345384]
[1754327187852,5.37100298,3713.2,3712.8,4.888]
[1754327188267,5.37100298,3713.2,3712.1,2.69385742]
[1754327188268,1.05,3712.9,3711.0,2.74429182]
[1754327188546,2.69390642,3712.1,3711.1,4.888]
[1754327188748,1.435,3712.8,3711.0,2.74429182]
[1754327188749,1.05698477,3712.0,3711.0,2.74429182]
[1754327188948,2.6944079,3711.4,3711.0,2.74429182]
[1754327189150,30.0,3712.3,3711.0,2.74429182]
[1754327189151,1.03,3711.3,3711.0,2.74429182]
[1754327189346,30.0,3711.0,3708.9,6.482]
[1754327189585,2.69585416,3709.4,3709.0,4.894]
[1754327189786,1.03,3709.3,3708.7,0.810084]
[1754327190001,1.03,3709.2,3707.5,0.02697235]
[1754327190244,1.03,3709.2,3707.7,0.810254]
[1754327190532,2.6962172,3708.9,3706.6,4.898]
[1754327190736,2.6962172,3708.9,3705.7,6.479]
[1754327190737,2.69710327,3707.7,3706.7,0.02697817]
[1754327191032,33.02698477,3707.6,3706.2,4.901]
[1754327191244,33.02698477,3707.6,3706.1,6.91286756]
[1754327191245,1.2106,3707.5,3706.1,6.91286756]
[1754327191542,0.4304,3708.1,3707.3,2.6973711]
[1754327191687,0.4304,3708.1,3706.2,5.72298181]
[1754327191688,0.7802,3708.6,3707.4,4.94797308]
[1754327191887,0.7802,3708.6,3706.1,3.0]
[1754327192156,2.72866186,3710.9,3706.5,0.775]
[1754327192433,0.4304,3709.3,3707.0,0.55]
[1754327192638,0.34766478,3710.7,3707.3,0.55]
[1754327192842,0.4304,3712.6,3709.7,14.54045232]
[1754327193125,0.4304,3712.6,3709.6,3.12607674]
[1754327193126,0.7802,3712.5,3709.8,6.21765563]
[1754327193327,3.0,3712.3,3710.0,3.0]
[1754327193491,3.93926186,3712.2,3710.1,0.57695345]
[1754327193688,0.4304,3712.1,3710.2,0.775]
[1754327193888,0.7802,3712.0,3710.2,0.775]
[1754327194122,0.7802,3712.0,3709.9,6.479]
[1754327194123,30.4304,3711.9,3710.3,4.991]
[1754327194322,31.23758477,3711.8,3709.9,7.288737]
[1754327194527,3.93926186,3711.7,3709.9,6.479]
[1754327194839,1.2106,3711.7,3711.0,2.69469025]
[1754327195143,0.4304,3711.7,3711.1,4.991]
[1754327195442,1.2106,3711.7,3711.1,4.991]
[1754327196028,0.7802,3711.7,3709.9,6.479]
[1754327196200,0.4304,3711.6,3709.9,6.479]
[1754327196400,3.4304,3711.6,3710.0,4.983]
[1754327196594,0.55,3712.2,3711.3,0.1344]
[1754327196595,2.69440103,3711.4,3711.3,0.1344]
[1754327196828,4.2106,3711.4,3711.3,0.1344]
[1754327197228,3.0,3711.3,3710.3,7.67819366]
[1754327197405,0.4304,3712.3,3710.4,0.80195127]
[1754327197607,0.7802,3712.6,3711.2,2.82891245]
[1754327197831,0.4304,3712.5,3710.5,0.775]